bitfinex/quotes_ETHUSD_20241001
["timestamp","ask_amount","ask_price","bid_price","bid_amount"]
[1727812239928,0.0842834,2500.1,2499.7,4.80046]
[1727812240231,0.08433631,2500.0,2499.6,9.60134]
[1727812240424,19.49874911,2500.0,2499.6,9.60133]
[1727812240628,22.24300723,2500.0,2499.4,4.80102]
[1727812240960,20.2306128,2499.9,2499.7,4.80055]
[1727812241115,19.49872967,2499.9,2499.7,4.80055]
[1727812241319,19.49872967,2499.9,2499.8,4.80038]
[1727812241735,19.49872967,2499.9,2499.7,4.80055]
[1727812242119,19.49872967,2499.9,2499.8,4.80038]
[1727812242321,19.49872967,2499.9,2499.1,0.8267]
[1727812242621,19.49872967,2499.9,2499.5,4.80086]
[1727812242877,19.49872967,2499.9,2499.7,4.80055]
[1727812243043,19.49872967,2499.9,2499.6,4.80076]
[1727812244184,4.80047,2499.8,2499.3,4.80132]
[1727812244371,4.88450927,2499.8,2499.3,4.80132]
[1727812244698,24.9840028,2499.7,2499.3,4.80132]
[1727812244843,4.80097,2499.5,2499.1,4.80158]
[1727812245044,0.08381893,2499.4,2499.1,4.80158]
[1727812245244,0.08381893,2499.4,2498.9,4.80198]
[1727812245245,19.49823173,2499.4,2498.9,4.80198]
[1727812245450,19.49823173,2499.4,2499.0,4.80178]
[1727812245944,19.49823173,2499.4,2499.3,4.80134]
[1727812246345,19.49823173,2499.4,2499.2,4.80136]
[1727812246556,19.49823173,2499.4,2499.3,4.80134]
[1727812247174,19.49823173,2499.4,2499.1,4.80164]
[1727812247376,19.49823173,2499.4,2499.0,5.762156]
[1727812247377,0.7925,2499.3,2499.0,4.80178]
[1727812247685,0.08378438,2499.3,2499.1,4.80162]
[1727812248076,0.08378438,2499.3,2499.0,5.281958]
[1727812248277,0.08378438,2499.3,2499.0,4.80178]
[1727812248587,19.49819718,2499.3,2499.0,4.80178]
[1727812249103,19.49819718,2499.3,2498.8,4.80226]
[1727812249104,24.29962718,2499.3,2498.8,4.80226]
[1727812249292,24.29962718,2499.3,2498.8,9.60444]
[1727812249454,4.80167,2499.2,2498.7,4.80244]
[1727812249888,27.03675761,2499.3,2498.4,4.80298]
[1727812249889,4.8022,2498.9,2498.4,4.80298]
[1727812250187,19.49494255,2498.8,2498.7,4.80249]
[1727812250992,19.49494255,2498.8,2498.6,4.80265]
[1727812251190,19.49494255,2498.8,2498.4,4.80292]
[1727812251495,19.49494255,2498.8,2498.7,4.80249]
[1727812251873,19.49494255,2498.8,2498.7,5.62189]
[1727812254309,0.08052975,2498.8,2498.7,5.62189]
[1727812254493,19.4144128,2499.3,2498.7,0.8994281]
[1727812254695,19.4144128,2499.3,2499.2,4.80153]
[1727812254902,24.2153028,2499.6,2499.1,4.80163]
[1727812255289,27.35168845,2500.1,2499.2,5.60958]
[1727812255290,20.1677128,2500.0,2499.2,5.60958]
[1727812255495,19.4144128,2499.9,2499.7,4.80056]
[1727812255693,19.4144128,2500.2,2499.9,4.80019]
[1727812255895,24.2141228,2500.2,2499.6,4.80064]
[1727812256074,24.2141228,2500.2,2499.7,4.80055]
[1727812256271,0.7533,2500.3,2499.9,4.80016]
[1727812256483,0.7533,2500.3,2499.7,0.960119]
[1727812256484,19.4144128,2500.5,2500.2,4.7995]
[1727812257070,0.825,2501.0,2500.3,0.07997462]
[1727812257277,0.825,2501.3,2500.9,4.79826]
[1727812257474,0.825,2501.3,2500.4,0.7833]
[1727812257712,0.825,2501.3,2500.6,4.79871]
[1727812257925,4.79779,2501.2,2500.7,4.79851]
[1727812258224,0.825,2501.3,2500.7,4.79851]
[1727812258534,0.825,2501.3,2500.6,0.558201]
[1727812258535,5.62202,2501.6,2501.1,4.79788]
[1727812258834,5.62202,2501.6,2501.0,4.79794]
[1727812258835,0.825,2501.6,2501.0,4.79794]
[1727812258987,4.01657112,2501.6,2501.0,4.79794]
[1727812259188,8.81364112,2501.6,2501.1,4.79784]
[1727812259408,8.81364112,2501.6,2501.0,4.79794]
[1727812259612,8.81364112,2501.6,2501.1,4.79788]
[1727812259822,8.81364112,2501.6,2501.0,9.5959]
[1727812260089,9.46403789,2502.0,2500.8,3.0]
[1727812260090,0.7962,2502.0,2500.8,3.0]
[1727812260297,0.7962,2502.0,2501.7,4.79661]
[1727812260596,4.7957,2502.3,2501.4,0.76]
[1727812260597,20.2106128,2502.3,2501.4,0.76]
[1727812260798,20.2106128,2502.3,2501.6,4.79679]
[1727812260799,6.81684128,2502.2,2501.6,4.79679]
[1727812261000,2.02106128,2502.2,2501.6,4.79679]
[1727812261199,2.02106128,2502.2,2501.7,4.87642759]
[1727812261431,2.02106128,2502.2,2501.4,0.76]
[1727812261662,4.79608,2502.1,2501.5,4.79701]
[1727812261825,0.68171413,2502.0,2501.5,4.79701]
[1727812262125,4.79686,2501.7,2501.1,4.79776]
[1727812262328,4.79686,2501.7,2501.1,9.59552]
[1727812262524,4.79686,2501.7,2500.7,0.7694]
[1727812262525,4.79696,2501.6,2500.9,4.79812]
[1727812262725,0.8122,2501.3,2501.1,4.79775]
[1727812262932,20.2434128,2501.6,2500.5,0.07996047]
[1727812263128,2.50402928,2501.5,2501.1,4.79782]
[1727812263332,0.829,2501.6,2501.1,4.79782]
[1727812263991,4.79712,2501.5,2501.0,4.79789]
[1727812264186,0.829,2501.6,2501.0,9.59578]
[1727812264638,0.829,2501.6,2501.1,4.79782]
[1727812265090,4.7972,2501.5,2501.0,4.79789]
[1727812265295,1.042315,2501.4,2501.0,4.79789]
[1727812265735,1.042315,2501.4,2501.1,4.79778]
[1727812266357,0.829,2501.6,2501.0,4.79789]
[1727812266642,25.0123728,2501.8,2501.3,4.79735]
[1727812267140,25.0123728,2501.8,2501.2,4.79756]
[1727812267141,4.79678,2501.7,2501.2,4.79756]
[1727812267306,4.79693,2501.6,2501.1,4.79778]
[1727812267514,4.79693,2501.6,2501.0,4.7979]
[1727812267515,4.79717,2501.5,2501.0,4.7979]
[1727812267816,12.57491028,2501.6,2501.0,4.7979]
[1727812268143,4.79717,2501.5,2501.0,4.7979]
[1727812268321,7.77786028,2501.6,2501.1,4.79788]
[1727812268709,0.77778603,2501.5,2501.1,4.79788]
[1727812269011,0.07694374,2501.4,2501.0,4.7979]
[1727812269248,0.07694374,2501.4,2501.0,4.79794]
[1727812269409,0.07694374,2501.4,2500.9,4.79825]
[1727812269608,0.07694374,2501.4,2500.7,5.55924]
[1727812269609,0.7799,2501.3,2500.7,5.55924]
[1727812269804,5.36313837,2501.2,2500.7,4.79854]
[1727812270010,5.43998933,2501.2,2500.7,4.79854]
[1727812270323,5.43998933,2501.2,2500.7,4.79851]
[1727812270527,4.79814,2501.0,2500.5,4.7989]
[1727812270715,24.2125528,2501.0,2500.5,4.7989]
[1727812270911,19.4144128,2501.0,2500.6,4.79868]
[1727812271118,19.4144128,2501.0,2500.4,0.7853]
[1727812271119,0.07675052,2500.9,2500.8,4.79827]
[1727812271317,0.07675052,2500.9,2500.7,4.79863]
[1727812271544,0.07675052,2500.9,2500.8,4.79846]
[1727812271819,0.07675052,2500.9,2500.5,9.59774]
[1727812272046,0.7824,2500.8,2500.3,4.79932]
[1727812272251,0.7824,2500.8,2500.6,4.79878]
[1727812272523,19.4144128,2500.9,2500.7,4.79855]
[1727812272743,19.4144128,2500.9,2500.6,4.79873]
[1727812272951,21.43409408,2500.9,2500.6,4.79873]
[1727812273339,26.23236408,2500.9,2500.4,4.79909]
[1727812273622,0.8145,2500.7,2500.3,4.79939]
[1727812273849,19.4144128,2500.9,2500.6,4.7987]
[1727812274421,19.4144128,2500.9,2500.7,4.79851]
[1727812274633,21.35585408,2500.9,2500.5,4.7989]
[1727812274938,21.35585408,2500.9,2500.5,9.59783]
[1727812275252,1.94144128,2500.9,2500.5,4.7989]
[1727812275861,1.94144128,2500.9,2500.1,5.61361]
[1727812275862,19.4144128,2501.0,2500.7,4.79854]
[1727812276073,19.4144128,2501.3,2501.1,4.79788]
[1727812276366,0.7777,2501.8,2501.7,4.79673]
[1727812276564,19.4144128,2502.0,2501.7,4.79673]
[1727812276719,19.4144128,2502.0,2501.3,0.8168]
[1727812276720,19.4144128,2502.0,2501.8,4.79654]
[1727812276922,19.4144128,2502.0,2501.3,0.8168]
[1727812276923,19.4144128,2502.0,2501.6,9.59361]
[1727812277163,19.4144128,2502.0,2501.4,4.79717]
[1727812277321,4.79645,2501.9,2501.2,4.79756]
[1727812277522,7.21763628,2501.8,2501.2,4.79756]
[1727812277838,4.79693,2501.6,2501.1,4.79786]
[1727812278162,19.4144128,2501.6,2501.2,4.79755]
[1727812278319,24.2113428,2501.6,2501.1,4.79786]
[1727812278519,21.91328708,2501.5,2500.7,5.55541]
[1727812278720,21.91328708,2501.5,2500.7,4.79851]
[1727812278721,4.79761,2501.3,2500.7,4.79851]
[1727812278947,0.7972,2501.1,2500.4,0.7816]
[1727812279133,20.2116128,2501.1,2500.8,4.79845]
[1727812279565,20.2116128,2501.1,2500.6,4.79867]
[1727812279718,2.50094228,2501.0,2500.6,4.79867]
[1727812279917,20.2116128,2501.1,2500.8,4.79846]
[1727812280158,20.2116128,2501.1,2500.8,4.7983]
[1727812280366,20.2116128,2501.1,2500.3,4.7994]
[1727812280367,20.2116128,2501.1,2500.3,4.79937]
[1727812280577,20.2116128,2501.1,2500.4,4.79913]
[1727812280578,24.2126028,2501.0,2500.4,4.79913]
[1727812280749,24.2126028,2501.0,2500.3,4.79937]
[1727812281068,19.4144128,2500.9,2500.5,4.799]
[1727812281267,24.2126928,2500.9,2500.4,4.79922]
[1727812281584,24.2126928,2500.9,2500.1,0.7816]
[1727812281888,24.2126928,2500.9,2500.3,4.7993]
[1727812282046,24.2126928,2500.9,2500.2,4.79947]
[1727812282247,7.51780791,2500.8,2500.4,4.79922]
[1727812282440,2.71934791,2500.8,2500.4,4.79922]
[1727812282640,2.71934791,2500.8,2500.2,4.79947]
[1727812282842,2.71934791,2500.8,2500.4,4.79909]
[1727812283145,2.71934791,2500.8,2500.3,4.79938]
[1727812283475,2.71934791,2500.8,2500.4,4.79918]
[1727812283990,0.07374304,2500.7,2500.1,5.58127]
[1727812284143,0.07374304,2500.7,2500.1,0.7816]
[1727812284346,0.07374304,2500.7,2500.3,4.79932]
[1727812284572,19.4144128,2500.8,2500.3,9.59859]
[1727812284759,0.07383702,2500.6,2500.3,9.59859]
[1727812284958,19.4144128,2500.8,2500.3,9.59859]
[1727812285158,0.07388254,2500.7,2500.3,9.59859]
[1727812285358,22.31552808,2500.8,2500.1,5.58125]
[1727812285572,5.6625665,2500.7,2500.1,4.79965]
[1727812285845,4.79887,2500.6,2500.1,9.59934]
[1727812286092,24.2135828,2500.5,2499.9,4.80002]
[1727812286245,24.2136628,2500.4,2499.9,4.80003]
[1727812286446,0.7899,2500.3,2499.7,4.80044]
[1727812286685,0.7899,2500.0,2499.3,4.80122]
[1727812286995,19.48781994,2499.9,2499.3,4.80122]
[1727812287289,24.28801994,2499.9,2499.3,4.80122]
[1727812287442,24.28801994,2499.9,2499.4,4.80096]
[1727812287443,19.48781994,2499.9,2499.4,4.80096]
[1727812287644,19.48781994,2499.9,2499.3,4.80122]
[1727812287645,24.28808994,2499.9,2499.3,4.80122]
[1727812287846,19.48781994,2499.9,2499.4,4.80107]
[1727812288060,27.27584293,2499.9,2499.4,4.80107]
[1727812288395,4.80045,2499.8,2499.3,4.80122]
[1727812288703,4.87366804,2499.8,2499.3,9.60245]
[1727812288862,4.87366804,2499.8,2499.3,4.80122]
[1727812289263,0.07327804,2499.8,2499.4,4.80115]
[1727812289687,0.07327804,2499.8,2499.4,9.60221]
[1727812289962,19.48769084,2499.8,2499.4,9.60221]
[1727812290188,19.48769084,2499.8,2499.4,4.80106]
[1727812290387,4.80058,2499.7,2499.3,4.80133]
[1727812290790,0.07285913,2499.6,2499.3,4.80133]
[1727812291108,10.3881,2499.5,2498.9,4.80199]
[1727812291401,24.28846113,2499.4,2498.9,4.80199]
[1727812291737,22.47478324,2499.4,2498.9,4.80199]
[1727812291916,27.27596324,2499.4,2498.9,4.80199]
[1727812292210,27.27596324,2499.4,2498.9,9.60399]
[1727812292364,27.27596324,2499.4,2498.9,9.60398]
[1727812293008,19.48724113,2499.4,2499.0,9.60363]
[1727812293165,19.48724113,2499.4,2499.0,4.80181]
[1727812293505,4.80136,2499.3,2498.8,4.8022]
[1727812293701,0.8291,2499.1,2498.8,4.80228]
[1727812294015,0.07256037,2499.0,2498.7,4.80248]
[1727812294303,0.07256037,2499.0,2498.7,9.60478]
[1727812294473,0.07256037,2499.0,2498.7,4.80239]
[1727812294808,0.07256037,2499.0,2498.7,9.60478]
[1727812295160,0.07256037,2499.0,2498.7,4.80239]
[1727812295736,19.48697317,2499.0,2498.5,4.80272]
[1727812295936,19.48697317,2499.0,2498.7,4.80249]
[1727812296236,19.48697317,2499.0,2498.5,9.6055]
[1727812296436,19.48697317,2499.0,2498.6,4.8026]
[1727812296727,19.48697317,2499.0,2498.7,4.8023]
[1727812296934,19.48697317,2499.0,2498.8,4.8023]
[1727812297292,19.48697317,2499.0,2498.9,4.80211]
[1727812297805,0.07256037,2499.0,2498.9,4.80211]
[1727812298137,0.07256037,2499.0,2498.9,4.88213496]
[1727812298363,19.4144128,2499.3,2499.1,4.80166]
[1727812298997,0.07223301,2499.2,2499.1,4.80166]
[1727812299227,0.07223301,2499.2,2499.0,4.80191]
[1727812299538,19.4144128,2499.3,2499.0,4.80175]
[1727812300055,0.07260538,2499.2,2499.0,4.80175]
[1727812300394,19.4144128,2499.3,2498.7,4.80236]
[1727812300395,24.2158128,2499.3,2498.7,4.80236]
[1727812300594,24.2158128,2499.3,2498.6,4.80256]
[1727812300595,0.07225516,2499.1,2498.6,4.80256]
[1727812300822,4.80208,2499.0,2498.4,9.60584]
[1727812301022,25.0956623,2499.0,2498.5,4.80278]
[1727812301339,4.80225,2498.9,2498.3,4.80326]
[1727812301642,28.09267808,2499.0,2498.5,4.80286]
[1727812301807,0.07212086,2498.9,2498.5,4.80286]
[1727812302141,0.07212086,2498.9,2498.5,4.80278]
[1727812302298,0.07212086,2498.9,2498.5,9.60556]
[1727812302634,0.07212086,2498.9,2498.5,4.80277]
[1727812302842,0.07212086,2498.9,2498.6,4.80266]
[1727812303056,0.07212086,2498.9,2498.8,4.8023]
[1727812303546,0.07212086,2498.9,2498.5,6.21611906]
[1727812303847,0.7609,2498.8,2498.5,4.80277]
[1727812304020,0.7609,2498.8,2498.3,4.80308]
[1727812304223,0.7609,2498.8,2498.1,0.8081]
[1727812304224,4.87433105,2498.7,2498.2,4.80343]
[1727812304423,24.28874385,2498.7,2498.2,4.80343]
[1727812304642,19.48624385,2498.7,2498.3,4.80324]
[1727812305214,19.4144128,2498.6,2498.1,4.8036]
[1727812305442,19.4144128,2498.5,2498.1,4.8036]
[1727812305645,19.48624411,2498.5,2498.2,4.80335]
[1727812306338,19.48624411,2498.5,2498.1,4.80354]
[1727812306549,19.48624411,2498.5,2498.3,4.80324]
[1727812306857,19.48624411,2498.5,2498.1,4.80354]
[1727812307026,0.7712,2498.4,2498.0,4.80381]
[1727812307553,0.07177804,2498.3,2498.2,4.80345]
[1727812307754,19.4144128,2498.5,2498.1,4.80361]
[1727812308068,19.4144128,2498.5,2498.4,4.80307]
[1727812308647,0.7613,2499.0,2498.4,4.80307]
[1727812308648,20.1757128,2499.0,2498.8,4.80221]
[1727812308854,0.7613,2499.0,2498.8,4.80221]
[1727812309013,0.7613,2499.0,2498.6,9.60511]
[1727812309208,0.7613,2499.0,2498.6,4.80251]
[1727812309522,0.7613,2499.0,2498.6,4.80266]
[1727812309854,0.7613,2499.0,2498.7,4.80239]
[1727812310168,19.4144128,2499.1,2498.9,4.80211]
[1727812310509,19.4144128,2499.1,2498.8,4.80228]
[1727812310715,19.4144128,2499.1,2498.9,4.80198]
[1727812310938,19.4144128,2499.1,2498.8,4.80228]
[1727812311823,21.91209108,2499.1,2498.6,4.80252]
[1727812312031,4.80202,2499.0,2498.6,4.80252]
[1727812312312,4.80202,2499.0,2498.5,4.80285]
[1727812312313,5.55382,2498.9,2498.5,4.80285]
[1727812312660,0.7517,2498.9,2498.5,4.80285]
[1727812312954,0.7517,2498.9,2498.6,4.80265]
[1727812313254,0.7517,2498.9,2498.7,4.80248]
[1727812313454,0.7517,2498.9,2498.7,4.80239]
[1727812313654,0.7517,2498.9,2498.7,9.60475]
[1727812313957,0.7517,2498.9,2498.7,4.80236]
[1727812314152,0.06953218,2498.8,2498.7,4.80236]
[1727812314718,0.06953218,2498.8,2498.7,5.858918]
[1727812314920,0.814,2499.5,2499.3,4.8012]
[1727812315620,0.814,2499.5,2499.2,4.80145]
[1727812316014,0.814,2499.5,2499.2,4.80144]
[1727812316816,0.814,2499.5,2499.0,4.8018]
[1727812316817,5.61507,2499.5,2499.0,4.8018]
[1727812317017,5.61507,2499.5,2498.7,1.056558]
[1727812317018,4.80119,2499.4,2498.8,4.80214]
[1727812317217,19.4144128,2499.3,2498.8,4.80214]
[1727812317458,24.2157628,2499.3,2498.8,4.80211]
[1727812317628,4.80155,2499.2,2498.8,4.80211]
[1727812318157,19.4144128,2499.3,2498.8,4.80211]
[1727812318158,24.2157628,2499.3,2498.8,4.80211]
[1727812318662,24.2157628,2499.3,2499.0,4.80183]
[1727812318663,19.4144128,2499.3,2499.0,4.80183]
[1727812319157,19.4144128,2499.3,2499.0,4.80181]
[1727812319569,24.2157728,2499.3,2498.9,4.80208]
[1727812319856,5.55913,2499.1,2498.6,4.80257]
[1727812320072,0.7573,2499.1,2498.3,0.7561]
[1727812320224,0.7573,2499.1,2498.3,4.80315]
[1727812320225,5.55941,2498.9,2498.3,4.80315]
[1727812320427,5.55941,2498.9,2497.9,5.6812753]
[1727812320428,24.73507911,2498.8,2498.1,4.80363]
[1727812320640,0.7573,2498.5,2498.0,4.80371]
[1727812320836,19.4144128,2498.4,2497.9,4.9250553]
[1727812321187,19.4144128,2498.4,2498.3,4.80326]
[1727812322066,19.4144128,2499.2,2499.0,4.80187]
[1727812322378,19.4144128,2499.5,2499.0,4.80185]
[1727812322548,7.38,2499.6,2499.3,4.80133]
[1727812322549,0.8242,2499.6,2499.3,4.80133]
[1727812322751,0.8242,2499.6,2499.3,4.80125]
[1727812322966,5.62507,2499.6,2498.9,4.80198]
[1727812323189,4.80126,2499.4,2498.5,4.80287]
[1727812323341,2.50394828,2499.5,2498.5,4.80287]
[1727812323342,19.4144128,2499.3,2499.0,4.8019]
[1727812323680,7.30499828,2499.5,2499.1,4.80172]
[1727812323681,19.4144128,2499.2,2499.1,4.80172]
[1727812324942,19.4144128,2499.2,2499.0,4.80178]
[1727812325388,19.4144128,2499.2,2499.1,4.80172]
[1727812325984,19.4144128,2499.7,2499.5,4.80078]
[1727812326154,19.4144128,2499.8,2499.5,4.80078]
[1727812326872,24.2148028,2499.8,2499.3,4.80133]
[1727812327070,19.4144128,2499.8,2499.1,4.80158]
[1727812327273,4.80073,2499.7,2499.1,9.60321]
[1727812327570,2.42151428,2499.6,2499.1,9.6032]
[1727812327756,2.42151428,2499.6,2499.1,4.80158]
[1727812327950,2.42151428,2499.6,2499.2,4.80151]
[1727812328164,4.80115,2499.4,2498.9,4.802]
[1727812328375,19.4144128,2499.4,2499.0,4.8019]
[1727812328648,19.4144128,2499.4,2499.1,4.80171]
[1727812328967,0.06797118,2499.3,2499.1,4.80171]
[1727812329172,0.06797118,2499.3,2498.9,4.80192]
[1727812329384,0.06797118,2499.3,2499.1,4.80169]
[1727812330298,0.06797118,2499.3,2498.4,3.0]
[1727812330299,24.2159628,2499.2,2498.3,0.8266]
[1727812330486,2.82490958,2499.3,2498.5,4.80277]
[1727812330487,4.80203,2499.0,2498.5,4.80277]
[1727812330658,0.8096,2498.9,2498.5,4.80277]
[1727812330859,0.87740702,2498.9,2498.7,4.80246]
[1727812331059,0.87740702,2498.9,2498.3,5.62972]
[1727812331279,0.87740702,2498.9,2498.5,4.80273]
[1727812332852,0.06780702,2498.9,2498.7,4.80239]
[1727812333062,0.06780702,2498.9,2498.3,4.80315]
[1727812333063,5.62101,2498.8,2498.3,4.80315]
[1727812333260,1.3874817,2498.8,2498.3,4.80315]
[1727812333462,0.06712428,2498.7,2498.4,4.80297]
[1727812333669,0.06712428,2498.7,2498.5,4.80286]
[1727812333874,0.8186,2498.8,2498.5,4.80286]
[1727812334071,19.4144128,2499.0,2498.5,6.583981]
[1727812334072,0.06709331,2498.6,2498.5,6.583981]
[1727812334289,0.8243,2499.4,2498.5,1.781101]
[1727812334599,0.8243,2499.4,2498.9,4.80193]
[1727812335161,2.89834452,2499.7,2499.4,4.80111]
[1727812335362,0.8089,2499.7,2499.5,4.80093]
[1727812335563,19.4144128,2499.9,2499.6,4.80076]
[1727812335902,0.8089,2500.4,2500.0,4.79984]
[1727812336106,20.2233128,2500.4,2499.8,4.80026]
[1727812336256,22.93449353,2500.4,2499.8,9.60052]
[1727812336461,22.93449353,2500.4,2500.0,4.79994]
[1727812336684,21.50385732,2500.7,2500.2,4.7995]
[1727812336892,0.8089,2500.7,2500.4,4.79922]
[1727812337256,0.8089,2500.7,2500.4,4.7991]
[1727812337459,2.88374452,2501.1,2500.3,0.07998248]
[1727812337664,3.27484907,2501.1,2500.6,4.79869]
[1727812337908,8.07285907,2501.1,2500.6,4.79883]
[1727812338069,8.07285907,2501.1,2500.5,9.59787]
[1727812338272,8.07285907,2501.1,2500.5,9.59784]
[1727812338471,4.79833,2500.9,2500.1,5.6184]
[1727812338674,0.479833,2500.8,2500.4,4.79908]
[1727812338880,0.479833,2500.8,2500.2,4.79949]
[1727812339213,4.7987,2500.7,2500.2,4.79949]
[1727812339563,0.479833,2500.8,2500.3,4.79936]
[1727812339791,4.79868,2500.7,2500.2,4.79949]
[1727812340000,0.5278163,2500.7,2500.4,4.7992]
[1727812340232,3.27484907,2501.1,2500.6,4.79866]
[1727812340515,3.27484907,2501.1,2500.6,9.5974]
[1727812340715,8.07277907,2501.1,2500.6,4.79866]
[1727812340879,20.1777128,2501.4,2500.8,4.79843]
[1727812341083,21.50270669,2501.9,2501.1,4.79775]
[1727812341281,4.79703,2501.6,2501.0,4.79795]
[1727812341692,4.79703,2501.6,2500.9,4.79813]
[1727812341902,4.79703,2501.6,2500.5,4.79902]
[1727812341903,0.8174,2501.1,2500.5,4.79902]
[1727812342100,0.8174,2501.1,2500.4,0.8299]
[1727812342101,4.79818,2501.0,2500.4,4.79919]
[1727812342302,4.79818,2501.0,2500.1,5.60407]
[1727812342303,19.4144128,2501.0,2500.1,5.60407]
[1727812342502,4.79872,2500.7,2500.1,5.60407]
[1727812342706,5.278592,2500.7,2500.1,5.60406]
[1727812342873,0.479872,2500.7,2500.1,5.60406]
[1727812343074,5.278532,2500.7,2500.1,0.8044]
[1727812343420,5.278532,2500.7,2500.0,4.79987]
[1727812343619,5.278532,2500.7,2500.2,4.79961]
[1727812343773,0.5278532,2500.6,2500.1,4.79979]
[1727812343974,0.5278532,2500.6,2500.3,4.7994]
[1727812343975,0.06210291,2500.5,2500.3,4.7994]
[1727812344325,0.06210291,2500.5,2499.9,9.60018]
[1727812344326,20.30271571,2500.5,2499.9,9.60018]
[1727812344498,2.56294189,2500.4,2499.9,4.80009]
[1727812344669,7.36220189,2500.4,2499.9,4.80009]
[1727812344865,0.06200045,2500.3,2499.7,4.80041]
[1727812345071,19.47641325,2500.3,2500.0,4.79989]
[1727812345332,19.47641325,2500.3,2500.1,4.7998]
[1727812345871,21.50667458,2500.3,2499.8,4.80025]
[1727812346071,4.79991,2500.1,2499.6,9.60128]
[1727812346270,19.4144128,2500.2,2499.6,9.60128]
[1727812346271,19.4144128,2500.2,2499.6,4.80062]
[1727812346525,19.4144128,2500.2,2499.2,4.80134]
[1727812346526,5.62908,2499.9,2499.3,4.8013]
[1727812346689,5.62908,2499.9,2499.4,4.80114]
[1727812346871,5.62908,2499.9,2499.2,4.80141]
[1727812346872,0.0618295,2499.8,2499.2,4.80141]
[1727812347071,19.4762423,2499.8,2499.1,0.7807]
[1727812347286,19.4762423,2499.8,2499.5,9.60168]
[1727812347486,19.4762423,2499.8,2499.5,4.80084]
[1727812348114,19.4762423,2499.8,2499.5,9.60168]
[1727812348313,19.4762423,2499.8,2499.6,4.80062]
[1727812348473,19.4762423,2499.8,2499.5,4.80092]
[1727812349106,26.70437653,2499.8,2499.3,4.80121]
[1727812349285,5.61889,2499.7,2499.1,5.58235]
[1727812349588,4.80099,2499.5,2499.0,4.80191]
[1727812349825,0.06151749,2499.4,2499.3,4.8013]
[1727812350252,19.4144128,2499.8,2499.5,4.80092]
[1727812350523,20.2327128,2500.3,2499.6,0.0800072]
[1727812350714,0.8183,2500.3,2500.1,4.79965]
[1727812350907,20.2327128,2500.3,2500.1,4.79965]
[1727812351277,19.4144128,2500.3,2500.1,4.79965]
[1727812351717,19.4144128,2500.5,2500.2,4.79946]
[1727812351922,19.4144128,2500.5,2500.1,5.759621]
[1727812351923,19.4144128,2500.5,2500.3,4.79931]
[1727812352701,19.4144128,2500.5,2500.4,4.79923]
[1727812352909,19.4144128,2500.5,2500.3,4.79928]
[1727812353242,19.4144128,2500.5,2500.2,4.79957]
[1727812353525,24.2134728,2500.5,2500.0,4.79999]
[1727812353979,27.11470108,2500.5,2500.0,4.79999]
[1727812354181,22.31564108,2500.5,2500.1,4.7998]
[1727812354425,19.4144128,2500.5,2500.1,4.7998]
[1727812355122,19.4144128,2500.5,2500.2,4.7996]
[1727812355316,19.4144128,2500.5,2500.1,4.7998]
[1727812355317,24.2134628,2500.5,2500.1,4.7998]
[1727812356037,5.59744,2500.4,2499.9,4.80006]
[1727812356189,3.21944628,2500.4,2499.9,4.80006]
[1727812356719,8.01871628,2500.4,2499.9,4.80006]
[1727812357281,3.21944628,2500.4,2500.0,4.79996]
[1727812357517,3.21944628,2500.4,2499.9,4.80006]
[1727812357518,8.01867628,2500.4,2499.9,4.80006]
[1727812358020,3.21944628,2500.4,2500.0,4.79999]
[1727812358225,0.7981,2500.4,2500.0,4.79999]
[1727812358723,0.7981,2500.4,2499.9,4.80006]
[1727812359136,0.06189642,2500.3,2500.2,4.7996]
[1727812359437,0.06189642,2500.3,2500.2,4.85262125]
[1727812359742,0.06189642,2500.3,2500.2,5.78674599]
[1727812360028,19.4144128,2500.5,2500.4,4.79923]
[1727812360194,19.4144128,2500.5,2500.3,4.79939]
[1727812360784,19.4144128,2500.5,2500.3,4.7993]
[1727812361021,4.79849,2500.8,2500.3,4.7993]
[1727812361210,7.77983928,2500.8,2500.3,4.7993]
[1727812361411,7.77983928,2500.8,2500.1,0.8178]
[1727812361582,4.79868,2500.7,2500.3,4.7994]
[1727812361786,4.79894,2500.6,2500.1,4.79965]
[1727812362015,4.7987,2500.7,2500.2,4.7995]
[1727812362221,7.51814421,2500.7,2500.2,4.7995]
[1727812362724,7.51814421,2500.7,2499.8,0.7767]
[1727812362725,19.4144128,2500.9,2500.4,4.79909]
[1727812362885,24.2129728,2500.8,2500.3,4.79938]
[1727812363489,24.2129728,2500.8,2499.9,4.80014]
[1727812363490,4.79932,2500.4,2499.9,4.80014]
[1727812363688,20.2396128,2500.7,2499.9,4.80019]
[1727812363689,19.4144128,2500.6,2499.9,4.80019]
[1727812364045,0.8252,2500.9,2500.1,0.7588]
[1727812364351,19.4144128,2501.1,2500.2,4.87958705]
[1727812364485,19.4144128,2501.1,2500.6,4.79884]
[1727812364690,5.62304,2501.2,2500.6,4.79874]
[1727812364911,0.8252,2501.2,2500.8,9.59678]
[1727812365097,19.4144128,2501.3,2500.8,4.79834]
[1727812365398,19.4144128,2501.3,2500.8,9.5967]
[1727812365801,19.4144128,2501.3,2501.0,4.79795]
[1727812366023,19.4144128,2501.7,2501.0,0.7588]
[1727812366227,19.4144128,2502.0,2501.1,4.87774474]
[1727812366437,4.79657,2501.8,2501.2,0.56365447]
[1727812366729,24.2106928,2502.0,2501.3,9.67481834]
[1727812366931,24.2106928,2502.0,2501.2,0.56365447]
[1727812366932,4.79665,2501.8,2501.2,0.56365447]
[1727812367137,4.79665,2501.8,2501.2,5.36134447]
[1727812367290,21.91800208,2502.0,2501.2,0.56365447]
[1727812367497,4.79666,2501.8,2501.2,5.36123447]
[1727812368995,26.71421208,2502.0,2501.2,5.36123447]
[1727812368996,26.71421208,2502.0,2501.3,4.79731]
[1727812369354,4.79643,2501.9,2501.3,4.79731]
[1727812369547,4.7967,2501.8,2501.1,4.7978]
[1727812369839,5.57324,2501.5,2500.9,4.7982]
[1727812369996,4.79751,2501.3,2500.7,5.5746]